bitfinex/quotes_SOLUSD_20240705
["timestamp","ask_amount","ask_price","bid_price","bid_amount"]
[1720145428518,100.0,127.23,127.14,6.6298]
[1720145428812,100.0,127.23,127.16,7.864]
[1720145428986,100.0,127.23,127.14,6.6298]
[1720145429309,100.0,127.27,127.2,7.8616]
[1720145429482,100.0,127.27,127.19,27.517]
[1720145429680,100.0,127.27,127.2,7.8616]
[1720145430188,100.0,127.27,127.19,27.517]
[1720145431416,100.1,127.29,127.19,19.655]
[1720145431816,107.956,127.29,127.21,7.8609]
[1720145432111,100.1,127.29,127.21,7.8609]
[1720145432505,107.9561,127.29,127.2,7.8614]
[1720145432704,100.1,127.29,127.21,7.861]
[1720145432908,0.1,127.29,127.17,86.6348]
[1720145433107,0.1,127.29,127.22,22.3673]
[1720145433294,0.1,127.29,127.24,7.8587]
[1720145434100,0.1,127.29,127.23,27.5081]
[1720145434300,0.1,127.29,127.23,27.5077]
[1720145434626,0.1,127.29,127.23,27.5082]
[1720145434827,0.1,127.29,127.24,7.8591]
[1720145435635,0.1,127.29,127.24,7.859]
[1720145435930,0.1,127.29,127.25,19.6451]
[1720145436096,0.1,127.29,127.27,7.8572]
[1720145436611,0.1,127.29,127.28,7.8566]
[1720145436924,0.1,127.29,127.27,27.4996]
[1720145437107,0.1,127.29,127.27,19.6425]
[1720145437721,0.1,127.29,127.27,27.4997]
[1720145438815,0.1,127.29,127.28,7.8566]
[1720145440232,8.07674296,127.31,127.3,27.494]
[1720145441243,8.07674296,127.31,127.3,66.7712]
[1720145441610,0.1,127.39,127.33,7.8536]
[1720145441826,0.1,127.39,127.34,7.8527]
[1720145442133,0.1,127.39,127.35,7.8519]
[1720145442348,0.1,127.39,127.34,27.4842]
[1720145443042,100.1,127.39,127.32,16.2031]
[1720145443218,0.1,127.39,127.31,7.8547]
[1720145443421,0.1,127.39,127.32,7.8541]
[1720145443622,0.1,127.39,127.32,19.6346]
[1720145444334,0.1,127.39,127.34,7.8529]
[1720145444535,0.1,127.39,127.34,19.6318]
[1720145444745,0.1,127.39,127.35,7.8518]
[1720145445074,0.1,127.39,127.36,7.8512]
[1720145445239,0.1,127.39,127.34,27.4845]
[1720145445763,0.1,127.39,127.35,0.63843384]
[1720145447462,0.1,127.39,127.33,7.8535]
[1720145447620,0.1,127.39,127.32,7.8541]
[1720145447822,0.1,127.39,127.31,19.6366]
[1720145448045,0.1,127.39,127.34,7.8528]
[1720145448325,0.1,127.39,127.33,19.6333]
[1720145448628,0.1,127.39,127.32,7.854]
[1720145449655,0.1,127.39,127.32,27.4886]
[1720145450028,0.1,127.39,127.33,7.8535]
[1720145450751,0.1,127.39,127.32,27.4887]
[1720145452037,100.0,127.38,127.27,6.2867]
[1720145452236,100.0,127.34,127.27,6.2867]
[1720145452435,107.853,127.34,127.26,7.8577]
[1720145452745,107.853,127.34,127.25,27.504]
[1720145452943,100.0,127.34,127.26,7.8578]
[1720145453845,107.8529,127.34,127.25,27.5042]
[1720145454457,100.0,127.31,127.22,19.6501]
[1720145454634,100.0,127.31,127.2,15.7354]
[1720145454635,7.8561,127.29,127.2,23.5965]
[1720145454836,100.0,127.29,127.21,7.8604]
[1720145455045,100.0,127.29,127.22,7.8603]
[1720145455245,100.0,127.29,127.19,19.6547]
[1720145455545,20.0452,127.3,127.19,19.6547]
[1720145455744,20.0452,127.3,127.22,19.6496]
[1720145456554,20.0452,127.3,127.24,7.8586]
[1720145456936,144.0331,127.34,127.25,7.8584]
[1720145457133,144.0331,127.34,127.24,19.6471]
[1720145457134,136.18,127.34,127.24,19.6471]
[1720145457350,100.0,127.32,127.21,19.652]
[1720145457544,7.8549,127.31,127.22,7.8599]
[1720145457743,100.0,127.32,127.22,7.8599]
[1720145458151,107.8543,127.32,127.22,7.8599]
[1720145458352,107.8543,127.32,127.18,19.6571]
[1720145458353,100.0,127.27,127.18,19.6571]
[1720145458760,7.858,127.26,127.17,7.8634]
[1720145458958,100.0,127.27,127.18,7.8625]
[1720145459267,107.8574,127.27,127.18,7.8625]
[1720145459464,100.0,127.27,127.19,7.862]
[1720145460170,112.7504,127.27,127.18,7.8627]
[1720145460374,112.7504,127.27,127.14,27.5283]
[1720145460375,100.0,127.25,127.14,27.5283]
[1720145460548,107.8591,127.25,127.14,27.5283]
[1720145460756,100.0,127.23,127.14,27.5283]
[1720145461675,100.0,127.25,127.16,19.6593]
[1720145461988,15.7561,127.26,127.2,7.8616]
[1720145462147,15.7561,127.26,127.19,19.6554]
[1720145462148,4.8927,127.27,127.22,7.8603]
[1720145462349,100.0,127.28,127.22,7.8603]
[1720145462549,100.0,127.28,127.2,7.861]
[1720145462749,100.0,127.28,127.21,7.8608]
[1720145462949,121.3579,127.31,127.24,7.8586]
[1720145463168,121.3579,127.31,127.25,19.6453]
[1720145463480,121.3579,127.31,127.25,27.5035]
[1720145463681,121.3579,127.31,127.25,19.6453]
[1720145464175,100.0,127.33,127.25,27.5037]
[1720145464777,100.0,127.33,127.25,19.6453]
[1720145464778,107.8536,127.33,127.25,19.6453]
[1720145464973,107.8541,127.33,127.23,7.8596]
[1720145465172,100.0,127.33,127.24,7.8586]
[1720145465481,107.8538,127.33,127.23,7.8596]
[1720145465658,100.0,127.33,127.24,7.8589]
[1720145466060,100.0,127.33,127.24,19.6467]
[1720145466468,100.0,127.33,127.21,6.2048]
[1720145466671,100.0,127.33,127.25,7.8585]
[1720145467486,100.0,127.33,127.26,7.8578]
[1720145467684,100.0,127.33,127.24,19.647]
[1720145467983,100.0,127.31,127.22,7.8597]
[1720145468166,107.8554,127.31,127.17,6.3349]
[1720145468499,100.0,127.31,127.19,39.3107]
[1720145468684,107.8548,127.31,127.22,19.6501]
[1720145468880,107.8548,127.31,127.22,27.5102]
[1720145469188,100.0,127.29,127.22,19.6501]
[1720145469370,7.8555,127.3,127.22,19.6501]
[1720145469688,100.0,127.31,127.22,19.6501]
[1720145469881,100.0,127.31,127.23,7.8593]
[1720145470069,100.0,127.31,127.22,27.5103]
[1720145470267,8.07057967,127.32,127.19,19.655]
[1720145470268,7.8572,127.28,127.19,19.655]
[1720145470594,104.8927,127.27,127.17,7.8634]
[1720145470888,100.0,127.25,127.16,19.6597]
[1720145471058,100.0,127.25,127.17,7.8633]
[1720145471458,100.0,127.23,127.14,16.0559]
[1720145471768,100.0,127.25,127.15,19.6607]
[1720145471975,100.0,127.25,127.18,7.8628]
[1720145472175,100.0,127.23,127.13,6.2933]
[1720145472383,107.859,127.25,127.15,7.8645]
[1720145472695,100.0,127.25,127.14,19.6626]
[1720145472886,7.8579,127.26,127.17,7.8634]
[1720145473277,19.9599,127.27,127.18,19.6561]
[1720145473494,127.8173,127.27,127.18,27.5189]
[1720145473691,127.8173,127.27,127.18,19.6561]
[1720145473987,119.9599,127.27,127.18,27.5183]
[1720145474178,7.8584,127.26,127.17,7.8634]
[1720145474374,119.9599,127.27,127.18,7.8628]
[1720145474967,127.8176,127.27,127.18,7.8628]
[1720145475893,19.9599,127.27,127.19,7.8621]
[1720145477191,127.8172,127.27,127.18,7.8627]
[1720145477570,119.9599,127.27,127.19,7.8622]
[1720145478390,19.9599,127.27,127.2,7.8614]
[1720145478598,119.9599,127.27,127.19,7.862]
[1720145478769,19.9599,127.27,127.19,7.862]
[1720145479387,19.9599,127.27,127.18,7.8627]
[1720145479388,27.8172,127.27,127.18,7.8627]
[1720145479772,107.8582,127.26,127.17,19.658]
[1720145479972,7.8591,127.24,127.16,7.8636]
[1720145480195,107.8591,127.24,127.16,7.8636]
[1720145480395,107.8591,127.24,127.15,7.8645]
[1720145480596,107.8592,127.24,127.15,7.8645]
[1720145480782,107.8592,127.24,127.16,7.864]
[1720145480783,100.0,127.24,127.16,7.864]
[1720145481673,100.0,127.24,127.17,7.8634]
[1720145481879,107.8579,127.26,127.17,7.8634]
[1720145482671,107.8579,127.26,127.18,7.8628]
[1720145483067,107.8579,127.26,127.17,7.8633]
[1720145483272,7.8586,127.25,127.16,19.6597]
[1720145483577,7.8586,127.25,127.16,27.5236]
[1720145484206,107.8597,127.24,127.14,7.8648]
[1720145484499,107.8597,127.24,127.15,7.8645]
[1720145484699,100.0,127.24,127.13,25.9574]
[1720145485577,107.8592,127.24,127.15,7.8642]
[1720145485779,7.8586,127.25,127.16,7.8636]
[1720145485985,107.858,127.26,127.17,7.863]
[1720145486570,100.0,127.24,127.16,7.864]
[1720145486775,107.8593,127.24,127.15,27.5259]
[1720145487880,107.8593,127.24,127.13,6.2933]
[1720145487881,19.9599,127.27,127.17,19.6581]
[1720145488287,4.8927,127.27,127.14,62.32]
[1720145488482,21.4406,127.31,127.23,19.6485]
[1720145488692,100.0,127.3,127.23,19.6485]
[1720145488906,107.8554,127.3,127.22,7.8602]
[1720145489077,100.0,127.3,127.21,7.861]
[1720145489394,100.0,127.3,127.2,19.6532]
[1720145489599,107.8559,127.3,127.21,7.8608]
[1720145490685,7.8561,127.29,127.2,27.5146]
[1720145490895,107.8555,127.3,127.21,7.8607]
[1720145491198,107.8555,127.3,127.22,7.8603]
[1720145491407,100.0,127.3,127.22,7.8603]
[1720145491582,7.8562,127.29,127.21,7.8608]
[1720145491904,107.8568,127.28,127.2,19.6532]
[1720145492089,107.8568,127.28,127.19,7.8617]
[1720145492285,107.8568,127.28,127.2,7.8615]
[1720145492597,107.8581,127.26,127.14,390.1]
[1720145492898,107.8581,127.26,127.12,31.0683702]
[1720145493086,100.0,127.26,127.18,7.8627]
[1720145493284,107.858,127.26,127.18,7.8627]
[1720145493684,107.858,127.26,127.17,7.8633]
[1720145493885,100.0,127.24,127.16,19.659]
[1720145494297,100.0,127.24,127.16,27.5229]
[1720145494889,100.0,127.22,127.13,19.6644]
[1720145495193,100.0,127.22,127.16,7.8639]
[1720145495912,21.0386,127.23,127.17,19.6583]
[1720145496603,21.0386,127.23,127.17,27.5213]
[1720145497300,21.0386,127.23,127.16,7.8641]
[1720145497611,21.0386,127.23,127.17,7.863]
[1720145497789,21.342,127.27,127.18,19.6567]
[1720145497985,21.342,127.27,127.15,16.1016]
[1720145498309,21.342,127.27,127.22,7.8602]
[1720145498310,4.8927,127.27,127.22,7.8602]
[1720145498484,4.8927,127.27,127.22,27.5108]
[1720145498682,7.8555,127.3,127.22,27.5108]
[1720145498902,121.342,127.31,127.22,27.5108]
[1720145499288,129.1972,127.31,127.22,27.5108]
[1720145501790,7.8555,127.3,127.22,27.5108]
[1720145501989,129.197,127.31,127.22,27.5108]
[1720145503300,21.342,127.31,127.23,7.8596]
[1720145503499,21.342,127.31,127.24,7.8591]
[1720145503807,8.19464239,127.32,127.24,19.6473]
[1720145504010,100.0,127.35,127.24,19.6473]
[1720145504011,107.8528,127.35,127.26,7.8574]
[1720145504190,107.8528,127.35,127.27,0.99642018]
[1720145504392,100.0,127.35,127.27,8.85342018]
[1720145504592,107.8524,127.35,127.27,8.85362018]
[1720145504792,107.8524,127.35,127.27,7.8572]
[1720145505199,107.8524,127.35,127.26,27.5018]
[1720145505702,7.853,127.34,127.26,27.5018]
[1720145505901,107.8525,127.35,127.26,27.5018]
[1720145506304,100.0,127.33,127.25,7.8583]
[1720145506497,7.8555,127.3,127.19,22.9794]
[1720145506687,7.8555,127.3,127.21,7.8605]
[1720145506888,7.8555,127.3,127.22,7.8603]
[1720145507108,7.8555,127.3,127.2,19.6532]
[1720145507512,7.8555,127.3,127.21,7.8605]
[1720145507896,100.0,127.29,127.21,7.8605]
[1720145508589,4.8927,127.28,127.15,27.62763648]
[1720145508792,4.8927,127.28,127.17,19.6579]
[1720145508793,100.0,127.26,127.17,19.6579]
[1720145509308,129.1075,127.28,127.19,7.8622]
[1720145509514,121.2508,127.28,127.22,7.8603]
[1720145509696,121.2508,127.28,127.21,27.5127]
[1720145510489,121.2508,127.28,127.21,19.6518]
[1720145511295,129.1075,127.28,127.2,7.8616]
[1720145511495,121.2508,127.28,127.21,7.8609]
[1720145511699,121.2508,127.28,127.2,27.5149]
[1720145512111,121.2508,127.28,127.22,7.8602]
[1720145512326,121.2508,127.28,127.21,7.8608]
[1720145513124,21.2508,127.28,127.22,7.8603]
[1720145513320,21.2508,127.28,127.21,7.8608]
[1720145513530,121.2508,127.28,127.21,7.8608]
[1720145513821,21.2508,127.28,127.21,7.8608]
[1720145514608,121.2508,127.28,127.21,7.8608]
[1720145514917,121.2508,127.28,127.2,27.5149]
[1720145515318,21.2508,127.28,127.21,7.8608]
[1720145516424,21.2508,127.28,127.2,27.515]
[1720145516916,21.2508,127.28,127.17,39.3152]
[1720145516917,7.8583,127.26,127.17,7.8629]
[1720145517225,100.0,127.25,127.16,27.5222]
[1720145517427,107.8587,127.25,127.17,7.8634]
[1720145517601,100.0,127.25,127.18,7.8628]
[1720145518624,100.0,127.23,127.14,7.8648]
[1720145518921,100.0,127.23,127.15,19.6605]
[1720145519128,100.0,127.23,127.15,27.525]
[1720145519921,107.8597,127.23,127.15,19.6605]
[1720145520517,107.8597,127.23,127.15,27.5251]
[1720145521054,100.0,127.21,127.15,19.6605]
[1720145521201,4.8927,127.2,127.12,19.7519702]
[1720145521402,4.8927,127.2,127.13,7.8658]
[1720145521639,4.8927,127.2,127.12,27.6183702]
[1720145521805,4.8927,127.2,127.13,7.8659]
[1720145522005,4.8927,127.2,127.14,7.865]
[1720145522435,4.8927,127.2,127.14,27.5277]
[1720145522731,104.8927,127.2,127.12,0.0862702]
[1720145522916,104.8927,127.2,127.13,7.8658]
[1720145523123,4.8927,127.2,127.14,7.8651]
[1720145523313,4.8927,127.2,127.13,27.5296]
[1720145523645,104.8927,127.2,127.13,19.6638]
[1720145523937,104.8927,127.2,127.13,27.5297]
[1720145524341,104.8927,127.2,127.13,19.6638]
[1720145524916,100.0,127.17,127.12,0.0862702]
[1720145525111,100.0,127.19,127.12,0.0862702]
[1720145525457,100.0,127.19,127.12,7.9526702]
[1720145525623,100.0,127.17,127.12,0.0862702]
[1720145525823,100.0,127.19,127.12,0.0862702]
[1720145526319,104.8927,127.2,127.12,19.7520702]
[1720145526643,104.8927,127.24,127.17,7.8629]
[1720145526859,100.0,127.22,127.12,0.0862702]
[1720145527210,100.0,127.22,127.14,7.8648]
[1720145527431,104.8927,127.24,127.16,7.8639]
[1720145527641,112.7519,127.24,127.16,7.8639]
[1720145527842,100.0,127.22,127.12,19.7516702]
[1720145528147,100.0,127.22,127.15,7.8641]
[1720145528516,113.08926658,127.24,127.12,0.0862702]
[1720145528715,113.08926658,127.24,127.18,7.8628]
[1720145528931,104.8927,127.24,127.18,7.8628]
[1720145529337,104.8927,127.24,127.17,7.8633]
[1720145530230,4.8927,127.24,127.16,19.6598]
[1720145530433,4.8927,127.24,127.18,19.6566]
[1720145530742,8.19943932,127.26,127.15,22.3442]
[1720145530943,100.0,127.26,127.15,42.0046]
[1720145531127,107.8593,127.24,127.15,49.8691]
[1720145531327,100.0,127.24,127.15,42.0046]
[1720145531637,100.0,127.24,127.18,7.8627]
[1720145531947,100.0,127.27,127.19,19.6545]
[1720145532148,13.09166469,127.28,127.21,7.8609]
[1720145532561,100.0,127.27,127.2,7.8615]
[1720145532861,13.09166469,127.28,127.2,7.8615]
[1720145533068,13.09166469,127.28,127.19,19.6545]
[1720145533069,107.8573,127.27,127.19,19.6545]
[1720145533235,100.0,127.27,127.19,27.5167]
[1720145533435,100.0,127.27,127.19,19.6545]
[1720145533743,100.0,127.27,127.2,7.8611]
[1720145534255,13.09166469,127.28,127.22,7.8601]
[1720145534464,115.0513,127.29,127.22,7.8601]
[1720145535040,4.8927,127.32,127.26,7.8574]
[1720145535255,4.8927,127.32,127.25,19.6456]
[1720145535464,4.8927,127.32,127.2,39.3058]
[1720145535758,4.8927,127.32,127.25,7.8583]
[1720145535940,8.19602972,127.33,127.26,7.8577]
[1720145536140,100.0,127.33,127.26,7.8577]
[1720145536345,7.8547,127.32,127.23,14.2196]
[1720145536652,100.0,127.33,127.26,7.8578]
[1720145536863,128.16390058,127.35,127.27,7.8573]
[1720145537050,128.16390058,127.35,127.29,7.8558]
[1720145537251,128.16390058,127.35,127.23,22.397]
[1720145537252,119.9669,127.35,127.27,27.4991]
[1720145537453,19.9669,127.35,127.28,7.8565]
[1720145537662,19.9669,127.35,127.27,19.6424]
[1720145537863,19.9669,127.35,127.28,7.8565]
[1720145538044,36.14,127.36,127.28,7.8565]
[1720145538464,116.04623245,127.37,127.28,7.8565]
[1720145538759,108.19513245,127.37,127.29,7.856]
[1720145538949,116.04633245,127.37,127.28,7.8561]
[1720145539151,116.04633245,127.37,127.27,19.6424]
[1720145539152,108.19513245,127.37,127.27,19.6424]
[1720145539964,100.0,127.35,127.27,19.6424]
[1720145540679,108.19513245,127.37,127.27,19.6424]
[1720145540854,100.0,127.35,127.27,19.6424]
[1720145541555,100.0,127.35,127.28,7.8561]
[1720145542356,100.0,127.35,127.27,19.6424]
[1720145542747,100.0,127.35,127.28,7.8566]
[1720145543268,108.19513245,127.37,127.32,7.8541]
[1720145543467,16.468,127.39,127.36,7.8517]
[1720145543776,0.1,127.39,127.34,7.8529]
[1720145543951,0.1,127.39,127.33,7.8535]
[1720145544271,0.1,127.39,127.32,19.6347]
[1720145545177,0.1,127.39,127.32,27.4883]
[1720145545349,0.1,127.39,127.33,7.8534]
[1720145546658,0.1,127.39,127.35,7.8523]
[1720145546978,0.1,127.39,127.35,7.8522]
[1720145547152,0.1,127.39,127.36,7.8517]
[1720145547350,0.1,127.39,127.38,7.8505]
[1720145547666,0.1,127.39,127.36,19.6284]
[1720145547667,0.1,127.39,127.37,7.8509]
[1720145548244,0.1,127.39,127.36,19.6284]
[1720145548446,0.1,127.39,127.33,19.6336]
[1720145548647,0.1,127.39,127.35,19.6301]
[1720145548961,0.1,127.39,127.35,27.4822]
[1720145549160,0.1,127.39,127.33,7.853]
[1720145549357,0.1,127.39,127.34,19.6313]
[1720145549556,0.1,127.39,127.38,7.8505]
[1720145550187,0.1,127.39,127.36,27.4794]
[1720145550478,0.1,127.39,127.33,19.6331]
[1720145550643,0.1,127.39,127.36,7.8517]
[1720145550847,0.1,127.39,127.33,19.6331]
[1720145551376,0.1,127.39,127.38,7.8505]
[1720145552262,0.1,127.39,127.37,19.6265]
[1720145552457,0.1,127.39,127.34,19.6324]
[1720145552671,0.1,127.39,127.35,7.8518]
[1720145552973,0.1,127.39,127.34,27.4852]
[1720145553175,0.1,127.39,127.3,22.0295]
[1720145553381,0.1,127.39,127.33,7.8534]
[1720145553551,0.1,127.39,127.3,22.0295]
[1720145553757,0.1,127.39,127.35,7.8522]
[1720145553979,0.1,127.39,127.34,7.8529]
[1720145554276,0.1,127.39,127.35,7.8522]
[1720145554850,100.1,127.39,127.33,19.6334]
[1720145555182,0.1,127.39,127.34,7.8528]
[1720145555880,0.1,127.39,127.33,27.4868]
[1720145556078,100.1,127.39,127.3,49.5222]
[1720145556373,100.0,127.37,127.3,6.0778]
[1720145556574,107.8511,127.37,127.28,7.8565]
[1720145556889,100.0,127.37,127.27,19.6424]
[1720145557057,100.0,127.37,127.28,7.8563]
[1720145557262,100.0,127.37,127.29,7.8559]
[1720145557667,100.0,127.37,127.3,7.8553]
[1720145557857,100.0,127.37,127.29,27.495]
[1720145558356,100.0,127.37,127.3,7.8554]
[1720145558554,100.0,127.37,127.29,27.495]
[1720145558754,107.8513,127.37,127.29,19.6391]
[1720145559279,100.0,127.37,127.29,19.6391]
[1720145559984,107.8512,127.37,127.29,27.4951]
[1720145560160,100.0,127.37,127.29,27.4951]
[1720145561982,100.0,127.37,127.28,7.8565]
[1720145562190,100.0,127.37,127.29,7.856]
[1720145563981,121.563,127.39,127.26,22.5944]
[1720145564183,121.563,127.39,127.33,7.8532]
[1720145564184,21.563,127.39,127.33,7.8532]
[1720145564563,21.563,127.39,127.27,86.6037]
[1720145564765,21.563,127.39,127.35,7.8522]
[1720145565078,21.563,127.39,127.34,27.4847]
[1720145565079,4.9927,127.39,127.34,27.4847]
[1720145565591,4.9927,127.39,127.34,19.6318]
[1720145566466,4.9927,127.39,127.31,19.6362]
[1720145566900,4.9927,127.39,127.32,7.854]
[1720145567476,4.9927,127.39,127.31,19.6362]
[1720145567784,7.8519,127.36,127.28,19.6415]
[1720145567989,7.8513,127.37,127.28,19.6415]
[1720145568372,104.9927,127.39,127.3,7.8549]
[1720145568579,123.1782,127.36,127.28,19.6415]
[1720145568772,115.3264,127.36,127.28,27.498]
[1720145569179,115.3264,127.36,127.26,22.5944]
[1720145569180,7.8531,127.34,127.26,22.5944]
[1720145569379,123.1785,127.36,127.27,7.8567]
[1720145569565,115.3264,127.36,127.27,19.6426]
[1720145569774,100.0,127.34,127.27,19.6426]
[1720145570173,100.0,127.34,127.27,27.4995]
[1720145574983,23.1785,127.36,127.24,7.8587]
[1720145574984,104.8927,127.32,127.24,7.8587]
[1720145575186,4.8927,127.32,127.25,7.8582]
[1720145575405,4.8927,127.32,127.22,6.5904]
[1720145575406,4.8927,127.32,127.27,7.8572]
[1720145575585,4.8927,127.32,127.26,27.5018]
[1720145576107,4.8927,127.32,127.27,7.8572]
[1720145577414,100.0,127.27,127.18,39.3139]
[1720145577605,4.8927,127.26,127.19,7.8621]
[1720145577806,4.8927,127.26,127.17,19.658]
[1720145578110,100.0,127.24,127.12,0.0862702]
[1720145578282,100.0,127.22,127.15,19.6608]
[1720145578485,100.0,127.22,127.15,27.5254]
[1720145578699,100.0,127.22,127.15,19.6608]
[1720145578915,100.0,127.22,127.16,7.864]
[1720145579217,100.0,127.24,127.16,7.864]
[1720145580294,100.0,127.21,127.15,19.6608]
[1720145580620,100.0,127.21,127.12,19.7521702]
[1720145580822,100.0,127.21,127.14,7.8653]
[1720145581689,100.0,127.21,127.12,27.6183702]
[1720145581892,100.0,127.19,127.12,27.6182702]
[1720145582190,100.0,127.19,127.12,19.7521702]
[1720145582401,15.2887,127.18,127.12,27.6186702]
[1720145582812,15.2887,127.18,127.12,0.0862702]
[1720145583128,15.2887,127.18,127.12,7.9527702]
[1720145583423,15.2887,127.18,127.12,0.0862702]
[1720145584508,15.2887,127.18,127.12,7.9526702]
[1720145584835,15.2887,127.18,127.12,0.0862702]
[1720145585335,15.2887,127.18,127.13,7.8656]
[1720145585502,15.2887,127.18,127.12,7.9526702]
[1720145585705,7.8648,127.15,127.12,0.0862702]
[1720145585925,100.0,127.17,127.12,0.0862702]
[1720145586729,107.8635,127.17,127.12,0.0862702]
[1720145586937,100.0,127.17,127.12,0.0862702]
[1720145587102,23.1517,127.18,127.12,0.0862702]
[1720145587622,100.0,127.16,127.12,0.0862702]
[1720145587827,7.8636,127.17,127.12,0.0862702]
[1720145587828,100.0,127.14,127.12,0.0862702]
[1720145588714,100.0,127.16,127.12,0.0862702]
[1720145588927,100.0,127.14,127.12,0.0862702]
[1720145589621,107.8653,127.14,127.12,0.0862702]
[1720145589946,100.0,127.14,127.12,0.0862702]
[1720145590112,107.8659,127.14,127.12,0.0862702]
[1720145591828,7.8659,127.13,127.12,0.0862702]
[1720145592553,100.0,127.13,127.12,0.0862702]
[1720145592851,100.0,127.15,127.12,0.0862702]
[1720145593150,107.8638,127.17,127.12,0.0862702]
[1720145593353,60.7077,127.2,127.12,0.0862702]
[1720145593354,100.0,127.19,127.12,0.0862702]
[1720145593720,107.8624,127.19,127.12,0.0862702]
[1720145594427,100.0,127.19,127.12,0.0862702]
[1720145594649,100.0,127.19,127.12,19.7521702]
[1720145595027,100.0,127.19,127.12,27.6185702]
[1720145595229,100.0,127.19,127.12,19.7521702]
[1720145595953,107.8623,127.19,127.12,0.0862702]
[1720145596260,4.8927,127.2,127.12,0.0862702]
[1720145596415,100.0,127.21,127.12,0.0862702]
[1720145596620,100.0,127.21,127.15,19.6609]
[1720145596847,100.0,127.21,127.13,7.8657]
[1720145597058,100.0,127.21,127.14,7.8651]
[1720145597248,16.6448,127.22,127.12,19.7521702]
[1720145597249,124.5054,127.22,127.13,7.8659]
[1720145597424,124.5054,127.22,127.14,7.8652]
[1720145597625,116.6448,127.22,127.14,7.8652]
[1720145597829,7.8615,127.21,127.12,27.6181702]
[1720145598040,116.6448,127.22,127.12,19.7521702]
[1720145598237,124.5052,127.22,127.12,19.7521702]
[1720145598421,108.20221621,127.22,127.16,7.864]
[1720145598622,108.20221621,127.22,127.14,19.662]
[1720145598822,107.8607,127.22,127.14,19.662]
[1720145599058,100.0,127.2,127.12,0.0862702]
[1720145599234,100.0,127.18,127.12,0.0862702]
[1720145599866,107.8617,127.2,127.12,0.0862702]
[1720145600148,107.8632,127.18,127.12,0.0862702]
[1720145600351,7.8635,127.17,127.12,0.0862702]
[1720145600530,107.8633,127.18,127.12,0.0862702]
[1720145600719,100.0,127.18,127.12,0.0862702]
[1720145600925,100.0,127.16,127.12,0.0862702]
[1720145601551,107.8644,127.16,127.12,0.0862702]
[1720145601745,100.0,127.18,127.12,0.0862702]
[1720145601932,100.0,127.2,127.12,7.9526702]
[1720145602138,100.0,127.18,127.12,0.0862702]
[1720145602847,108.20092773,127.18,127.12,0.0862702]
[1720145603037,100.0,127.18,127.12,0.0862702]
[1720145603235,107.8607,127.22,127.12,19.7520702]
[1720145603562,107.8607,127.22,127.14,7.8653]
[1720145603728,32.14,127.21,127.14,7.8653]
[1720145604257,100.0,127.22,127.12,39.4162702]
[1720145604555,32.14,127.24,127.12,39.4162702]
[1720145604740,32.14,127.24,127.13,6.3093]
[1720145605166,32.14,127.24,127.17,7.8633]
[1720145605654,32.14,127.24,127.16,27.5231]
[1720145605845,132.33663271,127.26,127.17,7.8633]